bitfinex/quotes_SOLUSD_20240729
["timestamp","ask_amount","ask_price","bid_price","bid_amount"]
[1722237937907,13.02,192.5,192.43,13.02]
[1722237938924,13.02,192.49,192.42,13.02]
[1722237939319,13.02,192.48,192.41,19.4936]
[1722237940127,13.02,192.49,192.41,19.4936]
[1722237941112,13.02,192.49,192.42,13.02]
[1722237941616,13.02,192.49,192.41,19.4936]
[1722237941931,4.1554,192.52,192.41,19.4936]
[1722237942101,13.02,192.49,192.41,19.4936]
[1722237942522,13.02,192.49,192.42,13.02]
[1722237943037,1.2988555,192.52,192.43,15.6665]
[1722237943212,1.8324514,192.56,192.43,28.6865]
[1722237943213,13.02,192.5,192.43,28.6865]
[1722237943741,4.1549,192.55,192.44,13.02]
[1722237943919,4.1549,192.55,192.43,15.6665]
[1722237943920,13.02,192.52,192.45,13.02]
[1722237944443,13.02,192.51,192.43,28.6865]
[1722237944608,1.29880952,192.57,192.43,28.6865]
[1722237944933,13.02,192.51,192.43,28.6865]
[1722237945136,13.02,192.51,192.44,13.02]
[1722237945641,4.1547,192.55,192.45,13.02]
[1722237945642,13.02,192.53,192.45,13.02]
[1722237945825,13.02,192.53,192.43,15.6665]
[1722237945826,13.02,192.53,192.46,13.02]
[1722237946340,2.20289036,192.59,192.47,13.02]
[1722237946516,13.02,192.55,192.47,13.02]
[1722237947640,13.02,192.54,192.47,13.02]
[1722237949743,13.02,192.53,192.46,13.02]
[1722237949920,13.02,192.52,192.45,13.02]
[1722237951749,13.02,192.53,192.46,13.02]
[1722237953547,13.02,192.51,192.44,13.02]
[1722237954064,13.02,192.51,192.43,28.6865]
[1722237955964,13.02,192.51,192.44,13.02]
[1722237956565,13.02,192.52,192.44,13.02]
[1722237957766,1.29874423,192.51,192.44,13.02]
[1722237958473,13.02,192.52,192.43,15.6665]
[1722237958676,13.02,192.52,192.44,13.02]
[1722237960371,13.02,192.52,192.45,13.02]
[1722237960665,13.02,192.52,192.43,15.6665]
[1722237960666,13.02,192.52,192.44,13.02]
[1722237961049,1.29881367,192.59,192.47,13.02]
[1722237961266,4.1541,192.58,192.47,13.02]
[1722237961568,13.02,192.55,192.47,13.02]
[1722237961769,13.02,192.54,192.47,13.02]
[1722237961974,13.02,192.54,192.43,15.6665]
[1722237962148,4.1545,192.56,192.46,13.02]
[1722237962348,13.02,192.53,192.46,13.02]
[1722237962653,13.02,192.54,192.46,13.02]
[1722237963655,13.02,192.54,192.47,13.02]
[1722237963852,5.45293572,192.57,192.47,13.02]
[1722237964056,5.45293572,192.57,192.44,0.34]
[1722237964057,13.02,192.55,192.48,13.02]
[1722237964650,45.0,192.56,192.47,13.02]
[1722237964850,13.02,192.54,192.47,13.02]
[1722237965853,4.1536,192.61,192.49,13.02]
[1722237966069,4.1537,192.6,192.44,1.37890961]
[1722237966251,13.02,192.58,192.51,13.02]
[1722237966457,13.02,192.57,192.46,1.03872521]
[1722237966661,13.02,192.57,192.47,0.34]
[1722237966969,13.02,192.57,192.5,13.02]
[1722237967177,13.02,192.58,192.5,13.02]
[1722237968062,4.1537,192.6,192.47,0.34]
[1722237968063,1.29840777,192.64,192.51,13.02]
[1722237968250,1.29840777,192.64,192.48,15.9572]
[1722237968251,4.1536,192.61,192.48,15.9572]
[1722237968446,58.02,192.6,192.52,13.02]
[1722237968883,13.02,192.59,192.52,13.02]
[1722237969547,13.02,192.59,192.53,1.03868681]
[1722237969765,13.02,192.57,192.5,13.02]
[1722237969966,13.02,192.57,192.51,0.17]
[1722237972077,1.29822548,192.62,192.51,0.17]
[1722237972382,13.02,192.58,192.51,13.36]
[1722237972556,13.02,192.58,192.51,13.19]
[1722237973184,13.02,192.57,192.51,0.17]
[1722237973483,13.02,192.57,192.51,0.34]
[1722237974677,13.02,192.57,192.51,13.36]
[1722237974870,13.02,192.57,192.51,0.34]
[1722237975256,13.02,192.57,192.49,13.02]
[1722237975453,13.02,192.56,192.49,13.02]
[1722237975658,13.02,192.55,192.48,34.5342]
[1722237975885,13.02,192.55,192.49,20.34]
[1722237976883,13.02,192.53,192.48,21.1742]
[1722237977378,13.02,192.52,192.48,21.1742]
[1722237977562,1.29849783,192.57,192.48,21.1742]
[1722237977752,13.02,192.54,192.48,21.1742]
[1722237978982,4.1538,192.6,192.48,34.1942]
[1722237979176,4.1534,192.61,192.48,35.23295443]
[1722237979376,13.02,192.56,192.49,13.36]
[1722237979676,13.02,192.57,192.49,13.36]
[1722237979874,13.02,192.56,192.49,13.36]
[1722237980383,13.02,192.57,192.5,13.02]
[1722237980771,13.02,192.57,192.49,13.36]
[1722237982784,5.4517457,192.62,192.49,13.36]
[1722237982980,13.02,192.57,192.5,13.02]
[1722237984582,13.02,192.54,192.48,15.9572]
[1722237984794,53.37844449,192.6,192.48,28.9772]
[1722237984971,13.02,192.55,192.48,28.9772]
[1722237985169,13.02,192.56,192.49,13.02]
[1722237985984,17.1747,192.55,192.48,21.1742]
[1722237986193,52.08,192.6,192.48,21.1742]
[1722237986491,13.02,192.56,192.48,34.1942]
[1722237986977,13.02,192.54,192.48,15.9572]
[1722237987376,13.02,192.57,192.49,13.36]
[1722237987573,13.02,192.57,192.5,13.02]
[1722237987977,13.02,192.58,192.51,13.02]
[1722237989280,4.1533,192.62,192.52,13.02]
[1722237989475,13.02,192.59,192.52,13.02]
[1722237989698,13.02,192.59,192.51,13.02]
[1722237992294,4.1533,192.62,192.51,13.02]
[1722237992476,13.02,192.58,192.51,13.02]
[1722237994704,13.02,192.58,192.5,13.02]
[1722237996292,13.02,192.57,192.5,13.02]
[1722237996596,13.02,192.56,192.49,13.36]
[1722237996794,13.02,192.56,192.5,20.0]
[1722237998177,4.1533,192.62,192.5,33.02]
[1722237998376,13.02,192.58,192.5,33.02]
[1722238002096,13.02,192.58,192.5,13.02]
[1722238003491,13.02,192.58,192.49,0.34]
[1722238003801,13.02,192.58,192.49,33.36]
[1722238004579,1.29831839,192.6,192.48,15.9572]
[1722238004580,13.02,192.56,192.48,15.9572]
[1722238004801,14.31831403,192.6,192.48,15.9572]
[1722238004802,13.02,192.54,192.48,15.9572]
[1722238005503,13.02,192.55,192.48,28.9772]
[1722238005683,4.1534,192.62,192.49,13.02]
[1722238005881,13.02,192.58,192.5,13.02]
[1722238006603,13.02,192.57,192.5,13.02]
[1722238007797,4.153,192.63,192.5,13.02]
[1722238008000,13.02,192.59,192.51,13.02]
[1722238008192,13.02,192.59,192.52,13.02]
[1722238008511,13.02,192.58,192.5,13.02]
[1722238010704,13.02,192.58,192.49,26.04799232]
[1722238011000,13.02,192.58,192.5,20.34]
[1722238011510,13.02,192.58,192.5,28.15099232]
[1722238012301,62.28862561,192.57,192.46,7.81099232]
[1722238012610,13.02,192.47,192.45,6.296]
[1722238012828,13.02,192.46,192.45,6.296]
[1722238013429,4.1553,192.53,192.45,6.296]
[1722238013725,13.02,192.47,192.45,6.296]
[1722238013924,5.45360076,192.56,192.45,6.296]
[1722238014100,13.02,192.52,192.45,6.296]
[1722238015392,13.02,192.51,192.45,6.296]
[1722238016321,4.1553,192.53,192.45,6.296]
[1722238016322,13.02,192.49,192.45,6.296]
[1722238017099,4.1549,192.54,192.45,6.296]
[1722238017313,13.02,192.5,192.45,6.296]
[1722238017515,1.29875234,192.56,192.45,19.316]
[1722238017814,13.02,192.53,192.45,24.533]
[1722238018017,13.02,192.51,192.45,6.296]
[1722238018217,13.02,192.52,192.45,6.296]
[1722238019908,5.45312666,192.56,192.45,6.296]
[1722238019909,17.1753,192.53,192.45,6.296]
[1722238020109,13.02,192.53,192.46,13.02]
[1722238021219,2.20273974,192.62,192.51,13.02]
[1722238021409,1.86090671,192.63,192.53,13.02]
[1722238021410,4.1532,192.63,192.53,13.02]
[1722238021743,13.02,192.61,192.53,13.02]
[1722238021904,13.02,192.59,192.52,29.57255757]
[1722238022100,13.02,192.59,192.52,15.5139]
[1722238022919,13.02,192.59,192.52,28.5339]
[1722238024037,1.2983374,192.67,192.52,28.5339]
[1722238024207,13.02,192.6,192.52,28.5339]
[1722238024410,13.02,192.6,192.53,13.02]
[1722238024625,13.02,192.6,192.52,28.5339]
[1722238025728,13.02,192.59,192.52,15.5139]
[1722238026026,13.02,192.58,192.52,15.5139]
[1722238027313,16.4406562,192.66,192.52,15.5139]
[1722238027314,13.02,192.56,192.52,15.5139]
[1722238027718,13.02,192.56,192.42,1.90185302]
[1722238027719,0.2084,192.26,192.23,7.81899264]
[1722238028047,0.90364669,192.27,191.66,10.88689828]
[1722238028048,20.0,191.97,191.66,10.88689828]
[1722238028211,20.0,191.97,191.55,1.87908157]
[1722238028212,20.0,191.71,191.55,1.87908157]
[1722238028412,20.0,191.99,191.4,23.2943326]
[1722238028413,1.50033222,191.7,191.52,4.1769]
[1722238028608,1.50033222,191.7,191.53,1.88852894]
[1722238028819,26.39039005,192.03,191.54,15.5669]
[1722238028820,7.67272387,191.63,191.54,15.5669]
[1722238029013,7.67272387,191.63,191.61,10.4374]
[1722238029230,7.67272387,191.68,191.54,15.5669]
[1722238029649,13.02,191.61,191.54,28.5869]
[1722238029853,7.67272387,191.68,191.54,15.5669]
[1722238030006,7.67272387,191.67,191.56,4.176]
[1722238030338,7.67272387,191.7,191.58,40.0]
[1722238030632,26.44021799,192.09,191.54,15.5669]
[1722238030633,7.67272387,191.76,191.66,4.1738]
[1722238030948,52.08,191.8,191.7,4.1729]
[1722238031109,52.08,191.8,191.68,10.4336]
[1722238031308,0.1575692,191.93,191.76,4.1718]
[1722238031509,35.98,191.89,191.74,10.4307]
[1722238031727,4.1695,191.87,191.74,10.4307]
[1722238031934,35.98,191.84,191.78,4.1712]
[1722238032145,35.98,191.9,191.81,4.1707]
[1722238032648,40.1488,191.9,191.79,14.5987]
[1722238032806,0.1575692,191.93,191.79,10.4276]
[1722238033012,0.1575692,191.93,191.85,4.1698]
[1722238033215,0.1575692,191.93,191.88,4.1692]
[1722238033448,0.1575692,191.93,191.86,10.4242]
[1722238033737,0.1575692,191.93,191.87,4.1693]
[1722238034412,0.1575692,191.93,191.86,10.4242]
[1722238034614,0.1575692,191.93,191.87,4.1693]
[1722238034920,0.1575692,191.93,191.92,4.1684]
[1722238035215,0.1575692,191.93,191.89,4.1689]
[1722238035431,0.1575692,191.93,191.86,4.1695]
[1722238035631,0.1575692,191.93,191.85,10.4246]
[1722238036132,0.1575692,191.93,191.87,4.1694]
[1722238037650,0.1575692,191.93,191.85,14.5943]
[1722238037808,0.1575692,191.93,191.85,10.4246]
[1722238038945,15.8075692,191.93,191.66,5.217]
[1722238039117,15.8075692,191.93,191.7,20.8658]
[1722238039118,80.96,191.92,191.7,20.8658]
[1722238039311,45.0,191.91,191.81,10.4266]
[1722238039511,0.1575692,191.93,191.87,4.1694]
[1722238039744,0.1575692,191.93,191.83,4.1702]
[1722238039949,0.1575692,191.93,191.86,4.1695]
[1722238040245,0.1575692,191.93,191.85,4.1697]
[1722238040621,0.1575692,191.93,191.87,4.1694]
[1722238041845,0.1575692,191.93,191.86,10.424]
[1722238043547,0.1575692,191.93,191.8,10.4271]
[1722238043744,4.1684,191.92,191.81,4.1705]
[1722238044051,45.0,191.91,191.81,4.1705]
[1722238045368,45.0,191.91,191.82,4.1704]
[1722238045660,45.0,191.91,191.8,10.4271]
[1722238045831,45.0,191.91,191.83,4.1701]
[1722238046657,45.0,191.91,191.8,10.4271]
[1722238047581,45.0,191.91,191.84,4.17]
[1722238047733,45.0,191.91,191.88,4.1691]
[1722238047930,45.0,191.91,191.85,10.4247]
[1722238048547,45.0,191.92,191.8,10.4272]
[1722238048742,0.34,191.91,191.82,4.1705]
[1722238049060,0.34,191.91,191.8,14.5981]
[1722238049061,4.1689,191.9,191.8,14.5981]
[1722238049381,45.0,191.89,191.75,10.4301]
[1722238049536,35.96,191.88,191.79,10.4275]
[1722238049729,45.0,191.87,191.79,10.4275]
[1722238049935,4.1702,191.84,191.76,4.1717]
[1722238050468,4.1697,191.86,191.77,4.1715]
[1722238050668,60.65,191.85,191.68,10.4335]
[1722238050868,4.1713,191.79,191.7,4.173]
[1722238051068,4.1713,191.79,191.7,4.1731]
[1722238051275,4.1713,191.79,191.71,5.217]
[1722238051459,4.1713,191.79,191.71,9.3899]
[1722238051767,4.1709,191.81,191.72,4.1726]
[1722238051973,49.171,191.8,191.72,4.1726]
[1722238053075,4.1713,191.79,191.72,4.1726]
[1722238053478,4.1715,191.78,191.71,5.217]
[1722238053647,4.1715,191.78,191.62,20.8742]
[1722238053648,45.0,191.8,191.62,20.8742]
[1722238053866,4.1719,191.76,191.69,4.1732]
[1722238054053,4.1716,191.78,191.69,4.1732]
[1722238054252,4.1716,191.78,191.7,4.173]
[1722238054665,45.0,191.8,191.7,4.173]
[1722238054868,0.17,191.79,191.68,4.1734]
[1722238055071,29.46,191.77,191.68,4.1734]
[1722238055374,4.1724,191.74,191.67,15.6513]
[1722238055678,49.1719,191.76,191.68,4.1734]
[1722238055872,4.1722,191.75,191.67,14.6081]
[1722238056197,4.1723,191.74,191.67,14.6081]
[1722238056482,29.46,191.77,191.67,10.4343]
[1722238056661,4.1721,191.75,191.68,4.1735]
[1722238056853,4.1705,191.83,191.75,4.172]
[1722238057059,4.1715,191.78,191.7,14.6054]
[1722238057365,29.46,191.77,191.66,5.217]
[1722238057564,29.46,191.81,191.69,10.4332]
[1722238057770,4.171,191.8,191.73,4.1723]
[1722238058086,4.1712,191.79,191.73,10.4313]
[1722238058376,29.46,191.81,191.72,4.1727]
[1722238058763,4.1715,191.78,191.69,10.4334]
[1722238059255,4.1717,191.77,191.69,10.4334]
[1722238059587,4.1719,191.76,191.7,4.1731]
[1722238059955,4.1719,191.76,191.69,14.6067]
[1722238060170,29.46,191.77,191.67,4.1737]
[1722238060380,46.30420115,191.76,191.65,10.4355]
[1722238060676,4.173,191.71,191.65,10.4355]
[1722238060854,4.173,191.71,191.65,14.6097]
[1722238061056,46.30420115,191.76,191.65,14.6097]
[1722238061257,4.1728,191.72,191.66,4.174]
[1722238061469,1.30420115,191.76,191.65,10.4355]
[1722238061779,4.1723,191.74,191.68,10.4335]
[1722238062108,1.30406071,191.76,191.62,0.27711718]
[1722238062388,4.1732,191.7,191.64,10.4358]
[1722238062596,11.73456071,191.75,191.57,0.27711718]
[1722238062774,4.1729,191.72,191.65,4.1742]
[1722238062973,29.46,191.77,191.61,20.8755]
[1722238063195,46.30409965,191.76,191.61,20.8755]
[1722238063397,4.1725,191.73,191.66,10.4347]
[1722238063963,1.30420909,191.75,191.66,10.4347]
[1722238064180,1.30418229,191.76,191.7,4.1731]
[1722238064483,29.46,191.77,191.68,4.1734]
[1722238064671,4.1721,191.75,191.69,4.1733]
[1722238065298,4.1726,191.73,191.67,4.1737]
[1722238065501,4.1723,191.74,191.67,4.1737]
[1722238065682,4.1723,191.74,191.68,4.1735]
[1722238065881,4.1723,191.74,191.66,10.4347]
[1722238065882,4.172,191.75,191.69,4.1733]
[1722238066205,29.46,191.77,191.69,10.4331]
[1722238066492,1.30410694,191.79,191.69,10.4331]
[1722238066493,4.1716,191.78,191.72,4.1726]
[1722238066699,1.30396321,191.77,191.72,4.1726]
[1722238066998,4.1718,191.76,191.7,4.1729]
[1722238067182,4.1716,191.78,191.71,4.1729]
[1722238067383,4.1716,191.77,191.69,10.4331]
[1722238067690,4.1714,191.79,191.72,4.1726]
[1722238067875,1.30396304,191.8,191.72,4.1726]
[1722238068308,4.1714,191.78,191.71,4.1727]
[1722238068475,4.1714,191.78,191.69,10.4331]
[1722238069298,29.46,191.81,191.69,10.4331]
[1722238069503,4.1714,191.78,191.7,0.27640012]
[1722238070007,4.1717,191.77,191.69,10.4331]
[1722238070169,29.46,191.81,191.72,4.1727]
[1722238070374,29.46,191.81,191.73,10.4311]
[1722238070671,4.1714,191.78,191.73,10.4311]
[1722238070895,4.1712,191.8,191.73,14.6036]
[1722238071077,4.1712,191.8,191.74,4.1722]
[1722238071492,11.7290848,191.84,191.74,4.1722]
[1722238071691,29.46,191.85,191.76,10.4292]
[1722238071893,4.1701,191.84,191.73,0.27565631]
[1722238072084,4.1701,191.84,191.79,10.4276]
[1722238072476,4.1701,191.84,191.79,14.5988]
[1722238072888,4.1701,191.84,191.79,10.4276]
[1722238073177,4.1698,191.86,191.79,10.4276]
[1722238073390,4.1701,191.84,191.79,10.4276]
[1722238073687,4.1701,191.84,191.79,14.5988]
[1722238073881,4.1701,191.84,191.79,10.4276]
[1722238074099,4.1703,191.83,191.79,10.4276]
[1722238074296,11.72614487,191.89,191.78,4.1713]
[1722238074601,9.40911314,191.88,191.78,4.1713]
[1722238074893,45.0,191.87,191.78,4.1713]
[1722238075099,46.30345995,191.88,191.78,4.1713]
[1722238075278,4.1701,191.84,191.79,4.1711]
[1722238075705,4.1701,191.84,191.78,4.1714]
[1722238075876,46.30345995,191.88,191.79,4.1711]
[1722238075877,4.1699,191.85,191.79,4.1711]
[1722238076976,4.1696,191.87,191.78,10.4285]
[1722238077181,4.1699,191.85,191.79,4.171]
[1722238077491,45.11,191.9,191.78,10.4285]
[1722238077492,29.46,191.9,191.78,10.4285]
[1722238077697,4.1699,191.85,191.79,4.171]
[1722238077898,4.1697,191.86,191.81,4.1707]
[1722238079373,4.1695,191.87,191.81,4.1707]
[1722238079790,4.1697,191.86,191.81,4.1707]
[1722238079987,4.1697,191.86,191.79,4.171]
[1722238080188,4.1697,191.86,191.78,10.4285]
[1722238080587,4.1694,191.88,191.81,4.1707]
[1722238080795,1.30328292,191.89,191.81,4.1707]
[1722238080796,4.1696,191.87,191.81,4.1707]
[1722238080994,4.1697,191.86,191.81,4.1707]
[1722238082088,1.303283,191.89,191.81,4.1707]
[1722238082292,46.303283,191.89,191.81,4.1707]
[1722238082503,30.76328213,191.9,191.82,10.4262]
[1722238082703,0.1575692,191.93,191.78,0.27476634]
[1722238082882,4.1691,191.89,191.83,4.1702]
[1722238083078,4.1693,191.88,191.83,4.1702]
[1722238083392,4.1695,191.87,191.81,10.4266]
[1722238083779,4.1695,191.87,191.81,14.5972]
[1722238084008,4.1693,191.88,191.82,4.1705]
[1722238084208,4.1695,191.87,191.82,4.1705]
[1722238084415,4.1695,191.87,191.81,14.5973]
[1722238085588,4.1697,191.86,191.81,10.4266]
[1722238085917,4.1697,191.86,191.81,14.5973]
[1722238086292,4.1697,191.86,191.81,10.4266]
[1722238086886,10.4216,191.91,191.81,14.5973]
[1722238087097,4.1698,191.86,191.81,10.4266]
[1722238088303,4.1699,191.85,191.8,0.27497318]
[1722238088516,4.1699,191.85,191.78,4.1712]
[1722238088517,4.1697,191.86,191.78,0.27497389]
[1722238088723,29.6175692,191.93,191.78,0.27497389]
[1722238088724,4.1692,191.89,191.83,4.1703]
[1722238089045,4.1692,191.89,191.81,10.4267]
[1722238089336,4.1692,191.89,191.82,4.1705]
[1722238090119,4.1687,191.91,191.81,10.4267]
[1722238090312,4.1687,191.91,191.84,4.1699]
[1722238090714,0.1575692,191.93,191.86,4.1696]
[1722238091101,1.86162744,191.97,191.77,21.1979]
[1722238091102,4.1681,191.94,191.87,10.4236]
[1722238091327,4.1682,191.93,191.87,10.4236]
[1722238091514,4.1682,191.93,191.87,14.5928]
[1722238091827,4.1679,191.95,191.88,4.1692]
[1722238092012,4.168,191.94,191.87,14.593]
[1722238092204,0.3201828,191.96,191.87,10.4236]
[1722238093026,4.1682,191.93,191.87,10.4236]
[1722238093499,4.1682,191.93,191.87,14.593]
[1722238094225,0.3201828,191.96,191.9,10.4218]
[1722238094430,0.3201828,191.96,191.91,4.1684]
[1722238095136,0.3201828,191.96,191.9,10.4218]
[1722238095358,0.3201828,191.96,191.93,14.5884]
[1722238095513,0.3201828,191.96,191.93,10.4203]
[1722238096342,0.3201828,191.96,191.92,4.1683]
[1722238096856,0.3201828,191.96,191.93,4.1681]
[1722238098056,0.3201828,191.96,191.92,10.4209]
[1722238098422,0.3201828,191.96,191.92,14.5892]
[1722238098622,0.3201828,191.96,191.92,10.4209]
[1722238099534,0.3201828,191.96,191.93,4.1681]
[1722238099742,0.3201828,191.96,191.94,4.1679]
[1722238100043,0.3201828,191.96,191.92,10.4209]
[1722238100044,0.3201828,191.96,191.95,4.1677]
[1722238101049,30.2952,192.07,191.99,4.1667]
[1722238101050,4.1653,192.06,191.99,4.1667]
[1722238101251,26.0898,192.13,191.98,10.4175]
[1722238101252,1.30196498,192.12,191.98,10.4175]
[1722238101454,4.1651,192.07,192.01,14.5822]
[1722238101755,30.295,192.08,192.01,14.5823]
[1722238101926,26.13,192.08,192.01,10.4159]
[1722238102324,4.1653,192.07,192.01,10.4159]
[1722238102519,4.1654,192.06,192.01,10.4159]
[1722238102766,4.1653,192.06,191.99,4.1668]
[1722238103180,4.1653,192.06,192.0,4.1666]
[1722238103665,4.1653,192.06,191.99,4.1668]
[1722238103865,30.68190313,192.1,191.99,4.1668]
[1722238103866,4.1656,192.05,191.99,4.1668]
[1722238104365,4.1653,192.07,191.99,4.1668]
[1722238104568,30.68190313,192.1,192.0,4.1666]
[1722238104745,45.0,192.09,192.0,4.1666]
[1722238105281,4.1653,192.06,192.0,4.1666]
[1722238105451,4.1651,192.07,192.01,4.1664]
[1722238105650,4.1651,192.07,192.0,4.1666]
[1722238106138,4.1651,192.07,191.97,10.4179]
[1722238106139,29.38,192.06,191.97,10.4179]
[1722238106344,4.1662,192.02,191.97,10.4179]
[1722238106946,4.166,192.03,191.97,14.5851]
[1722238107175,5.46794982,192.04,191.97,14.5851]
[1722238107562,5.46794982,192.04,191.98,4.167]
[1722238107759,5.46794982,192.04,191.97,10.4179]
[1722238107964,4.166,192.03,191.97,10.4179]
[1722238109079,4.1662,192.02,191.97,10.4179]
[1722238109375,1.30216299,192.01,191.97,10.4179]
[1722238109756,4.1662,192.02,191.97,10.4179]
[1722238109955,4.166,192.03,191.97,14.5851]
[1722238110474,4.166,192.03,191.97,10.4179]
[1722238110843,45.0,192.05,191.97,10.4179]
[1722238110844,1.30216844,192.02,191.97,10.4179]
[1722238111253,1.30216844,192.02,191.97,14.5852]
[1722238111851,1.30217366,192.01,191.97,10.4179]
[1722238112256,1.30225421,192.03,191.97,10.4179]
[1722238112462,5.46835421,192.03,191.97,14.5851]
[1722238113049,1.30225421,192.03,191.97,14.5851]
[1722238113947,45.0,192.05,191.98,4.167]
[1722238114169,50.46783658,192.05,191.98,4.167]
[1722238114685,49.1657,192.05,191.98,4.167]
[1722238114883,49.1657,192.05,191.99,4.1668]
[1722238115250,49.1657,192.05,191.97,14.585]
[1722238115477,4.1658,192.04,191.98,4.167]
[1722238115988,4.1658,192.04,191.97,14.5852]
[1722238117487,1.3021036,192.04,191.95,4.1676]
[1722238117967,4.1664,192.01,191.94,15.6931]
[1722238118157,1.30229107,192.0,191.95,4.1676]
[1722238118761,4.167,191.99,191.94,15.6931]
[1722238118977,11.71688336,192.04,191.94,15.6931]
[1722238119180,45.0,192.03,191.94,15.6931]
[1722238119364,5.46876943,192.02,191.95,4.1677]
[1722238119670,1.30236943,192.02,191.95,4.1677]
[1722238119987,1.30236943,192.02,191.96,10.4187]
[1722238119988,1.30224488,192.02,191.96,10.4187]
[1722238120187,1.30225452,192.01,191.96,14.5862]
[1722238120347,4.167,191.99,191.93,10.7862]
[1722238120554,4.1666,192.0,191.93,10.7862]
[1722238120763,4.1664,192.01,191.94,10.4197]
[1722238120955,4.1662,192.02,191.94,10.4197]
[1722238121163,5.46835813,192.04,191.94,10.4197]
[1722238121452,49.166,192.03,191.94,10.4197]
[1722238121667,4.1662,192.02,191.96,4.1673]
[1722238123151,26.12,192.02,191.97,4.1672]
[1722238123347,26.12,192.02,191.98,4.167]
[1722238123765,30.2863,192.02,191.96,14.5856]
[1722238124082,1.30227381,192.01,191.96,14.5856]
[1722238124262,1.30227652,192.01,191.96,14.5856]
[1722238124467,4.1665,192.01,191.96,10.4183]
[1722238124671,4.1667,192.0,191.93,10.786]
[1722238124975,4.1664,192.01,191.93,6.6181]
[1722238126183,27.42230634,192.02,191.96,4.1674]
[1722238126356,27.42230634,192.02,191.95,10.4193]
[1722238126357,26.12,192.02,191.95,10.4193]
[1722238126563,26.12,192.02,191.98,4.1668]
[1722238127581,4.1658,192.04,191.98,4.1668]
[1722238127786,31.58760258,192.05,191.99,4.1668]
[1722238128088,4.1658,192.04,191.99,4.1668]
[1722238128264,4.1658,192.04,191.98,4.167]
[1722238128463,4.1658,192.04,191.99,4.1668]
[1722238128994,4.1658,192.04,191.97,14.5848]
[1722238129289,4.1658,192.04,191.98,4.167]
[1722238129966,4.1658,192.04,191.99,4.1668]
[1722238131283,26.12,192.06,192.03,4.1659]
[1722238131494,30.2853,192.06,192.0,10.4162]
[1722238131671,4.1656,192.05,192.0,10.4162]
[1722238131867,4.1658,192.04,191.96,10.4184]
[1722238132064,27.42217116,192.06,191.97,4.1672]
[1722238132270,4.166,192.03,191.97,4.1672]
[1722238132472,27.42217116,192.06,191.98,4.167]
[1722238133077,26.12,192.06,191.99,10.417]
[1722238133406,26.12,192.06,192.01,4.1664]
[1722238133890,26.12,192.06,192.02,4.1661]
[1722238134267,26.12,192.06,191.99,10.417]
[1722238135294,26.12,192.06,192.01,4.1662]
[1722238135903,26.12,192.06,192.02,4.1661]
[1722238137197,30.2847,192.09,192.03,4.1659]
[1722238137492,4.1649,192.08,192.02,4.1662]
[1722238137906,30.2847,192.09,192.03,4.1659]
[1722238138108,30.2847,192.09,192.01,10.4155]
[1722238138109,30.2847,192.09,192.04,4.1657]
[1722238138402,30.2847,192.09,192.02,4.166]